fUSD/lending_fUSD_20241223
["ID","MTS","AMOUNT","RATE_DAILY","PERIOD"]
[346467877,1734985905142,-969.84,0.00015342,2]
[346467878,1734985905151,-322.226055,0.00015342,2]
[346467879,1734985905160,-549.36,0.00015342,2]
[346467880,1734985905169,-608.24,0.00015342,2]
[346467881,1734985905178,-500.0,0.00015342,2]
[346467882,1734985905187,-1182.74,0.00015342,2]
[346467883,1734985905200,-322.226055,0.00015342,2]
[346467884,1734985905209,-909.48,0.00015342,2]
[346467885,1734985905218,-500.0,0.00015342,2]
[346467886,1734985905226,-1492.35,0.00015342,2]
[346467887,1734985905235,-672.1,0.00015342,2]
[346467888,1734985905244,-500.0,0.00015342,2]
[346467889,1734985905254,-2159.79,0.00015342,2]
[346467890,1734985905263,-500.0,0.00015342,2]
[346467891,1734985905273,-1079.86,0.00015342,2]
[346467892,1734985905283,-916.08,0.00015342,2]
[346467893,1734985905292,-1665.74,0.00015342,2]
[346467894,1734985905302,-564.98,0.00015342,2]
[346467895,1734985905311,-350.25547359,0.00015342,2]
[346467896,1734985905320,-965.88,0.00015342,2]
[346467897,1734985905331,-2479.73,0.00015342,2]
[346467898,1734985905340,-500.0,0.00015342,2]
[346467899,1734985905349,-588.75,0.00015342,2]
[346467900,1734985905359,-500.0,0.00015342,2]
[346467901,1734985905367,-162.57178413,0.00015342,2]
[346467902,1734985905376,-1185.61,0.00015342,2]
[346467903,1734985905385,-502.55293709,0.00015342,2]
[346467904,1734985905394,-151.0,0.00015342,2]
[346467905,1734985905404,-751.19,0.00015342,2]
[346467906,1734985905413,-500.0,0.00015342,2]
[346467907,1734985905422,-500.0,0.00015342,2]
[346467908,1734985905431,-500.0,0.00015342,2]
[346467909,1734985905440,-2369.23,0.00015342,2]
[346467910,1734985905454,-1052.4,0.00015342,2]
[346467911,1734985905463,-500.0,0.00015342,2]
[346467912,1734985905472,-500.0,0.00015342,2]
[346467913,1734985905481,-500.0,0.00015342,2]
[346467914,1734985905491,-1795.99,0.00015342,2]
[346467915,1734985905501,-1448.03,0.00015342,2]
[346467916,1734985905510,-1186.31,0.00015342,2]
[346467917,1734985905519,-619.48,0.00015342,2]
[346467918,1734985905528,-515.85,0.00015342,2]
[346467919,1734985905537,-2531.7,0.00015342,2]
[346467920,1734985905547,-500.0,0.00015342,2]
[346467921,1734985905556,-1038.88,0.00015342,2]
[346467922,1734985905565,-926.36,0.00015342,2]
[346467923,1734985905574,-1711.03,0.00015342,2]
[346467924,1734985905583,-2389.36,0.00015342,2]
[346467925,1734985905594,-909.0,0.00015342,2]
[346467926,1734985905603,-1570.43,0.00015342,2]
[346467927,1734985905612,-739.02,0.00015342,2]
[346467928,1734985905621,-500.0,0.00015342,2]
[346467929,1734985905630,-500.0,0.00015342,2]
[346467930,1734985905639,-1441.07,0.00015342,2]
[346467931,1734985905648,-500.0,0.00015342,2]
[346467932,1734985905658,-500.0,0.00015342,2]
[346467933,1734985905667,-834.32,0.00015342,2]
[346467934,1734985905677,-2067.04,0.00015342,2]
[346467935,1734985905686,-500.0,0.00015342,2]
[346467936,1734985905695,-1595.56,0.00015342,2]
[346467937,1734985905705,-1979.45,0.00015342,2]
[346467938,1734985905714,-500.0,0.00015342,2]
[346467939,1734985905724,-324.48090025,0.00015342,2]
[346467940,1734985905733,-500.0,0.00015342,2]
[346467941,1734985905742,-500.0,0.00015342,2]
[346467942,1734985905751,-500.0,0.00015342,2]
[346467943,1734985905760,-714.16,0.00015342,2]
[346467944,1734985905770,-676.4,0.00015342,2]
[346467945,1734985905778,-1017.37,0.00015342,2]
[346467946,1734985905787,-1081.0,0.00015342,2]
[346467947,1734985905797,-897.59,0.00015342,2]
[346467948,1734985905806,-1444.5,0.00015342,2]
[346467949,1734985905815,-1906.68,0.00015342,2]
[346467950,1734985905824,-500.0,0.00015342,2]
[346467951,1734985905833,-500.0,0.00015342,2]
[346467952,1734985905842,-1319.4,0.00015342,2]
[346467953,1734985905852,-500.0,0.00015342,2]
[346467954,1734985905861,-1198.61,0.00015342,2]
[346467955,1734985905870,-500.0,0.00015342,2]
[346467956,1734985905879,-1420.71,0.00015342,2]
[346467957,1734985905889,-500.0,0.00015342,2]
[346467958,1734985905898,-500.0,0.00015342,2]
[346467959,1734985905907,-2377.84,0.00015342,2]
[346467960,1734985905917,-500.0,0.00015342,2]
[346467961,1734985905927,-848.05,0.00015342,2]
[346467962,1734985905939,-761.86,0.00015342,2]
[346467963,1734985905949,-151.0,0.00015342,2]
[346467964,1734985905958,-726.6,0.00015342,2]
[346467965,1734985905967,-500.0,0.00015342,2]
[346467966,1734985905978,-1295.68,0.00015342,2]
[346467967,1734985905988,-582.36,0.00015342,2]
[346467968,1734985905998,-151.0,0.00015342,2]
[346467969,1734985906007,-563.31,0.00015342,2]
[346467970,1734985906018,-2028.82,0.00015342,2]
[346467971,1734985906027,-2172.18,0.00015342,2]
[346467972,1734985906036,-500.0,0.00015342,2]
[346467973,1734985906045,-800.04,0.00015342,2]
[346467974,1734985906055,-500.0,0.00015342,2]
[346467975,1734985906064,-589.03,0.00015342,2]
[346467976,1734985906073,-1797.9,0.00015342,2]
[346467977,1734985906082,-2367.25,0.00015342,2]
[346467978,1734985906092,-500.0,0.00015342,2]
[346467979,1734985906101,-1636.79,0.00015342,2]
[346467980,1734985906110,-1955.68,0.00015342,2]
[346467981,1734985906119,-816.2,0.00015342,2]
[346467982,1734985906129,-500.0,0.00015342,2]
[346467983,1734985906138,-1984.61,0.00015342,2]
[346467984,1734985906147,-1377.44,0.00015342,2]
[346467985,1734985906156,-500.0,0.00015342,2]
[346467986,1734985906165,-500.0,0.00015342,2]
[346467987,1734985906175,-883.68,0.00015342,2]
[346467988,1734985906184,-500.0,0.00015342,2]
[346467989,1734985906193,-500.0,0.00015342,2]
[346467990,1734985906207,-1299.3,0.00015342,2]
[346467991,1734985906216,-2383.46,0.00015342,2]
[346467992,1734985906226,-151.0,0.00015342,2]
[346467993,1734985906235,-1084.61,0.00015342,2]
[346467994,1734985906245,-873.73,0.00015342,2]
[346467995,1734985906255,-500.0,0.00015342,2]
[346467996,1734985906264,-1037.13,0.00015342,2]
[346467997,1734985906273,-500.0,0.00015342,2]
[346467998,1734985906283,-976.37,0.00015342,2]
[346467999,1734985906293,-500.0,0.00015342,2]
[346468000,1734985906303,-1118.89,0.00015342,2]
[346468001,1734985906313,-1040.4,0.00015342,2]
[346468002,1734985906322,-1676.56,0.00015342,2]
[346468003,1734985906332,-500.0,0.00015342,2]
[346468004,1734985906341,-500.0,0.00015342,2]
[346468005,1734985906351,-500.0,0.00015342,2]
[346468006,1734985906361,-2349.52,0.00015342,2]
[346468007,1734985906370,-1681.72,0.00015342,2]
[346468008,1734985906380,-1231.67,0.00015342,2]
[346468009,1734985906389,-596.42,0.00015342,2]
[346468010,1734985906399,-500.0,0.00015342,2]
[346468011,1734985906408,-2136.05,0.00015342,2]
[346468012,1734985906418,-500.0,0.00015342,2]
[346468013,1734985906428,-878.77,0.00015342,2]
[346468014,1734985906437,-515.63,0.00015342,2]
[346468015,1734985906450,-1387.19,0.00015342,2]
[346468016,1734985906460,-444.34930607,0.00015342,2]
[346468017,1734985906469,-1277.14,0.00015342,2]
[346468018,1734985906479,-500.0,0.00015342,2]
[346468019,1734985906489,-942.01,0.00015342,2]
[346468020,1734985906499,-2334.95,0.00015342,2]
[346468021,1734985906509,-500.0,0.00015342,2]
[346468022,1734985906519,-1037.6,0.00015342,2]
[346468023,1734985906529,-521.04069506,0.00015342,2]
[346468024,1734985906540,-1810.9,0.00015342,2]
[346468025,1734985906550,-500.0,0.00015342,2]
[346468026,1734985906560,-544.81,0.00015342,2]
[346468027,1734985906570,-500.0,0.00015342,2]
[346468028,1734985906580,-1953.42,0.00015342,2]
[346468029,1734985906590,-871.58,0.00015342,2]
[346468030,1734985906600,-500.0,0.00015342,2]
[346468031,1734985906610,-1704.95,0.00015342,2]
[346468032,1734985906620,-726.61,0.00015342,2]
[346468033,1734985906630,-500.0,0.00015342,2]
[346468034,1734985906640,-500.0,0.00015342,2]
[346468035,1734985906649,-1166.37,0.00015342,2]
[346468036,1734985906659,-500.0,0.00015342,2]
[346468037,1734985906669,-500.0,0.00015342,2]
[346468038,1734985906679,-1041.48,0.00015342,2]
[346468039,1734985906688,-1034.48,0.00015342,2]
[346468040,1734985906701,-718.3,0.00015342,2]
[346468041,1734985906711,-1117.21,0.00015342,2]
[346468042,1734985906721,-185.736801,0.00015342,2]
[346468043,1734985906731,-917.86,0.00015342,2]
[346468044,1734985906741,-500.0,0.00015342,2]
[346468045,1734985906751,-936.45,0.00015342,2]
[346468046,1734985906760,-185.736801,0.00015342,2]
[346468047,1734985906771,-1338.94,0.00015342,2]
[346468048,1734985906781,-718.45,0.00015342,2]
[346468049,1734985906791,-1013.25,0.00015342,2]
[346468050,1734985906801,-500.0,0.00015342,2]
[346468051,1734985906811,-1310.97,0.00015342,2]
[346468052,1734985906821,-500.0,0.00015342,2]
[346468053,1734985906831,-797.38,0.00015342,2]
[346468054,1734985906841,-500.0,0.00015342,2]
[346468055,1734985906850,-500.0,0.00015342,2]
[346468056,1734985906860,-500.0,0.00015342,2]
[346468057,1734985906870,-734.76,0.00015342,2]
[346468058,1734985906880,-1542.48,0.00015342,2]
[346468059,1734985906890,-500.0,0.00015342,2]
[346468060,1734985906900,-507.23654545,0.00015342,2]
[346468061,1734985906910,-1329.72,0.00015342,2]
[346468062,1734985906921,-512.00269523,0.00015342,2]
[346468063,1734985906931,-831.36,0.00015342,2]
[346468064,1734985906942,-500.0,0.00015342,2]
[346468065,1734985906957,-500.0,0.00015342,2]
[346468066,1734985906967,-1274.05,0.00015342,2]
[346468067,1734985906978,-538.99,0.00015342,2]
[346468068,1734985906988,-669.59,0.00015342,2]
[346468069,1734985906998,-500.0,0.00015342,2]
[346468070,1734985907008,-500.0,0.00015342,2]
[346468071,1734985907018,-504.09,0.00015342,2]
[346468072,1734985907028,-2346.91,0.00015342,2]
[346468073,1734985907038,-500.0,0.00015342,2]
[346468074,1734985907048,-500.0,0.00015342,2]
[346468075,1734985907057,-500.0,0.00015342,2]
[346468076,1734985907067,-1552.36,0.00015342,2]
[346468077,1734985907078,-511.74,0.00015342,2]
[346468078,1734985907088,-500.0,0.00015342,2]
[346468079,1734985907099,-500.0,0.00015342,2]
[346468080,1734985907110,-518.25,0.00015342,2]
[346468081,1734985907119,-1317.58,0.00015342,2]
[346468082,1734985907129,-500.0,0.00015342,2]
[346468083,1734985907139,-500.0,0.00015342,2]
[346468084,1734985907149,-500.0,0.00015342,2]
[346468085,1734985907159,-1186.04,0.00015342,2]
[346468086,1734985907168,-495.31352796,0.00015342,2]
[346468087,1734985907178,-500.0,0.00015342,2]
[346468088,1734985907188,-1380.25,0.00015342,2]
[346468089,1734985907203,-199.513754,0.00015342,2]
[346468090,1734985907213,-534.95,0.00015342,2]
[346468091,1734985907223,-1680.71,0.00015342,2]
[346468092,1734985907232,-500.0,0.00015342,2]
[346468093,1734985907242,-500.0,0.00015342,2]
[346468094,1734985907252,-199.513754,0.00015342,2]
[346468095,1734985907262,-2218.43,0.00015342,2]
[346468096,1734985907272,-500.0,0.00015342,2]
[346468097,1734985907282,-825.1,0.00015342,2]
[346468098,1734985907293,-711.38,0.00015342,2]
[346468099,1734985907303,-1441.48,0.00015342,2]
[346468100,1734985907313,-2489.45,0.00015342,2]
[346468101,1734985907323,-1072.76,0.00015342,2]
[346468102,1734985907333,-1067.18,0.00015342,2]
[346468103,1734985907343,-1330.49,0.00015342,2]
[346468104,1734985907352,-500.0,0.00015342,2]
[346468105,1734985907362,-500.0,0.00015342,2]
[346468106,1734985907372,-1330.05,0.00015342,2]
[346468107,1734985907382,-2293.86,0.00015342,2]
[346468108,1734985907392,-960.34,0.00015342,2]
[346468109,1734985907402,-726.06,0.00015342,2]
[346468110,1734985907412,-1198.05,0.00015342,2]
[346468111,1734985907423,-676.2,0.00015342,2]
[346468112,1734985907433,-976.17,0.00015342,2]
[346468113,1734985907444,-572.9,0.00015342,2]
[346468114,1734985907455,-2358.02,0.00015342,2]
[346468115,1734985907466,-1767.73,0.00015342,2]
[346468116,1734985907477,-1610.47,0.00015342,2]
[346468117,1734985907487,-1406.6,0.00015342,2]
[346468118,1734985907498,-999.64,0.00015342,2]
[346468119,1734985907508,-1381.12,0.00015342,2]
[346468120,1734985907518,-378.77533098,0.00015342,2]
[346468121,1734985907528,-500.0,0.00015342,2]
[346468122,1734985907538,-2739.52,0.00015342,2]
[346468123,1734985907548,-520.74348298,0.00015342,2]
[346468124,1734985907558,-500.0,0.00015342,2]
[346468125,1734985907568,-1819.83,0.00015342,2]
[346468126,1734985907577,-500.0,0.00015342,2]
[346468127,1734985907587,-670.54,0.00015342,2]
[346468128,1734985907597,-286.14213478,0.00015342,2]
[346468129,1734985907607,-500.0,0.00015342,2]
[346468130,1734985907616,-500.0,0.00015342,2]
[346468131,1734985907627,-1116.26,0.00015342,2]
[346468132,1734985907636,-500.0,0.00015342,2]
[346468133,1734985907647,-1104.4,0.00015342,2]
[346468134,1734985907656,-500.0,0.00015342,2]
[346468135,1734985907666,-1127.54,0.00015342,2]
[346468136,1734985907676,-500.0,0.00015342,2]
[346468137,1734985907686,-713.56,0.00015342,2]
[346468138,1734985907696,-718.79,0.00015342,2]
[346468139,1734985907706,-500.0,0.00015342,2]
[346468140,1734985907715,-1324.85,0.00015342,2]
[346468141,1734985907725,-500.0,0.00015342,2]
[346468142,1734985907735,-546.66,0.00015342,2]
[346468143,1734985907744,-889.67,0.00015342,2]
[346468144,1734985907953,-552.31,0.00015342,2]
[346468145,1734985907963,-2585.74,0.00015342,2]
[346468146,1734985907973,-1564.45,0.00015342,2]
[346468147,1734985907982,-500.0,0.00015342,2]
[346468148,1734985907991,-2132.91,0.00015342,2]
[346468149,1734985908000,-1910.4,0.00015342,2]
[346468150,1734985908012,-500.0,0.00015342,2]
[346468151,1734985908022,-500.0,0.00015342,2]
[346468152,1734985908031,-500.0,0.00015342,2]
[346468153,1734985908041,-500.0,0.00015342,2]
[346468154,1734985908050,-676.74,0.00015342,2]
[346468155,1734985908060,-1052.83,0.00015342,2]
[346468156,1734985908070,-1540.54,0.00015342,2]
[346468157,1734985908079,-3961.8,0.00015342,2]
[346468158,1734985908089,-906.99,0.00015342,2]
[346468159,1734985908098,-1220.26,0.00015342,2]
[346468160,1734985908107,-500.0,0.00015342,2]
[346468161,1734985908117,-757.77,0.00015342,2]
[346468162,1734985908127,-608.2,0.00015342,2]
[346468163,1734985908136,-730.93,0.00015342,2]
[346468164,1734985908146,-164.515907,0.00015342,2]
[346468165,1734985908155,-642.48,0.00015342,2]
[346468166,1734985908164,-1925.188234,0.00015342,2]
[346468167,1734985908173,-1880.32,0.00015342,2]
[346468168,1734985908183,-500.0,0.00015342,2]
[346468169,1734985908192,-500.0,0.00015342,2]
[346468170,1734985908203,-164.515907,0.00015342,2]
[346468171,1734985908212,-1925.188234,0.00015342,2]
[346468172,1734985908222,-500.0,0.00015342,2]
[346468173,1734985908232,-593.05,0.00015342,2]
[346468174,1734985908241,-1323.67,0.00015342,2]
[346468175,1734985908251,-731.37,0.00015342,2]
[346468176,1734985908260,-500.0,0.00015342,2]
[346468177,1734985908270,-1229.23,0.00015342,2]
[346468178,1734985908280,-1128.51,0.00015342,2]
[346468179,1734985908290,-500.0,0.00015342,2]
[346468180,1734985908299,-1556.25,0.00015342,2]
[346468181,1734985908309,-1821.81,0.00015342,2]
[346468182,1734985908319,-500.0,0.00015342,2]
[346468183,1734985908329,-2511.25,0.00015342,2]
[346468184,1734985908338,-500.0,0.00015342,2]
[346468185,1734985908348,-500.0,0.00015342,2]
[346468186,1734985908358,-500.0,0.00015342,2]
[346468187,1734985908368,-207.684452,0.00015342,2]
[346468188,1734985908378,-1286.37,0.00015342,2]
[346468189,1734985908388,-4562.33,0.00015342,2]
[346468190,1734985908398,-1062.83,0.00015342,2]
[346468191,1734985908409,-1153.14,0.00015342,2]
[346468192,1734985908419,-641.53,0.00015342,2]
[346468193,1734985908429,-500.0,0.00015342,2]
[346468194,1734985908438,-207.684452,0.00015342,2]
[346468195,1734985908451,-2535.38,0.00015342,2]
[346468196,1734985908461,-559.44,0.00015342,2]
[346468197,1734985908471,-2844.22,0.00015342,2]
[346468198,1734985908481,-500.0,0.00015342,2]
[346468199,1734985908491,-1175.89,0.00015342,2]
[346468200,1734985908500,-659.94,0.00015342,2]
[346468201,1734985908510,-463.44,0.00015342,2]
[346468202,1734985908520,-1425.63,0.00015342,2]
[346468203,1734985908530,-1269.21,0.00015342,2]
[346468204,1734985908541,-3167.53,0.00015342,2]
[346468205,1734985908550,-500.0,0.00015342,2]
[346468206,1734985908560,-3442.76,0.00015342,2]
[346468207,1734985908569,-1385.92,0.00015342,2]
[346468208,1734985908579,-1459.47,0.00015342,2]
[346468209,1734985908589,-555.79,0.00015342,2]
[346468210,1734985908598,-533.73,0.00015342,2]
[346468211,1734985908607,-997.76,0.00015342,2]
[346468212,1734985908617,-154.246433,0.00015342,2]
[346468213,1734985908626,-500.0,0.00015342,2]
[346468214,1734985908636,-1272.23,0.00015342,2]
[346468215,1734985908646,-8524.68,0.00015342,2]
[346468216,1734985908655,-2285.32,0.00015342,2]
[346468217,1734985908665,-981.91,0.00015342,2]
[346468218,1734985908674,-2978.93,0.00015342,2]
[346468219,1734985908684,-154.246433,0.00015342,2]
[346468220,1734985908696,-9546.61,0.00015342,2]
[346468221,1734985908706,-2228.43,0.00015342,2]
[346468222,1734985908717,-2084.77,0.00015342,2]
[346468223,1734985908728,-1275.35,0.00015342,2]
[346468224,1734985908738,-151.0,0.00015342,2]
[346468225,1734985908747,-701.29,0.00015342,2]
[346468226,1734985908757,-8504.12,0.00015342,2]
[346468227,1734985908767,-2631.63,0.00015342,2]
[346468228,1734985908777,-5876.43,0.00015342,2]
[346468229,1734985908786,-500.0,0.00015342,2]
[346468230,1734985908795,-714.851638,0.00015342,2]
[346468231,1734985908805,-1269.09,0.00015342,2]
[346468232,1734985908815,-500.0,0.00015342,2]
[346468233,1734985908824,-1403.77,0.00015342,2]
[346468234,1734985908834,-6999.05,0.00015342,2]
[346468235,1734985908844,-896.477441,0.00015342,2]
[346468236,1734985908853,-567.05,0.00015342,2]
[346468237,1734985908863,-500.0,0.00015342,2]
[346468238,1734985908872,-500.0,0.00015342,2]
[346468239,1734985908881,-151.0,0.00015342,2]
[346468240,1734985908891,-978.25,0.00015342,2]
[346468241,1734985908901,-878.42,0.00015342,2]
[346468242,1734985908910,-810.98,0.00015342,2]
[346468243,1734985908920,-4971.32,0.00015342,2]
[346468244,1734985908932,-15609.61,0.00015342,2]
[346468245,1734985908941,-2082.07,0.00015342,2]
[346468246,1734985908953,-1810.82,0.00015342,2]
[346468247,1734985908963,-500.0,0.00015342,2]
[346468248,1734985908973,-500.0,0.00015342,2]
[346468249,1734985908983,-544.09,0.00015342,2]
[346468250,1734985908993,-500.0,0.00015342,2]
[346468251,1734985909004,-151.0,0.00015342,2]
[346468252,1734985909014,-2194.12,0.00015342,2]
[346468253,1734985909025,-21485.8,0.00015342,2]
[346468254,1734985909035,-537.09,0.00015342,2]
[346468255,1734985909044,-1307.78,0.00015342,2]
[346468256,1734985909054,-608.254172,0.00015342,2]
[346468257,1734985909064,-648.7,0.00015342,2]
[346468258,1734985909074,-500.0,0.00015342,2]
[346468259,1734985909084,-830.494148,0.00015342,2]
[346468260,1734985909093,-500.0,0.00015342,2]
[346468261,1734985909104,-792.62,0.00015342,2]
[346468262,1734985909113,-500.0,0.00015342,2]
[346468263,1734985909123,-695.34,0.00015342,2]
[346468264,1734985909132,-2306.63,0.00015342,2]
[346468265,1734985909142,-500.0,0.00015342,2]
[346468266,1734985909156,-1338.41,0.00015342,2]
[346468267,1734985909165,-1110.41,0.00015342,2]
[346468268,1734985909175,-2259.15,0.00015342,2]
[346468269,1734985909185,-2704.02,0.00015342,2]
[346468270,1734985909195,-446.255174,0.00015342,2]
[346468271,1734985909209,-8082.49,0.00015342,2]
[346468272,1734985909220,-500.0,0.00015342,2]
[346468273,1734985909230,-1130.4,0.00015342,2]
[346468274,1734985909240,-446.255174,0.00015342,2]
[346468275,1734985909250,-4959.77,0.00015342,2]
[346468276,1734985909260,-254.68957282,0.00015342,2]
[346468277,1734985909270,-957.86,0.00015342,2]
[346468278,1734985909281,-505.532594,0.00015342,2]
[346468279,1734985909291,-1409.87,0.00015342,2]
[346468280,1734985909302,-1185.79,0.00015342,2]
[346468281,1734985909312,-736.657144,0.00015342,2]
[346468282,1734985909322,-500.0,0.00015342,2]
[346468283,1734985909332,-909.88,0.00015342,2]
[346468284,1734985909343,-500.0,0.00015342,2]
[346468285,1734985909353,-500.0,0.00015342,2]
[346468286,1734985909363,-5418.44,0.00015342,2]
[346468287,1734985909373,-1045.5,0.00015342,2]
[346468288,1734985909383,-4556.54,0.00015342,2]
[346468289,1734985909393,-881.96,0.00015342,2]
[346468290,1734985909403,-500.0,0.00015342,2]
[346468291,1734985909414,-500.0,0.00015342,2]
[346468292,1734985909428,-500.0,0.00015342,2]
[346468293,1734985909438,-151.0,0.00015342,2]
[346468294,1734985909449,-25800.67,0.00015342,2]
[346468295,1734985909459,-1968.17,0.00015342,2]
[346468296,1734985909469,-500.0,0.00015342,2]
[346468297,1734985909478,-151.0,0.00015342,2]
[346468298,1734985909488,-687.21,0.00015342,2]
[346468299,1734985909498,-500.0,0.00015342,2]
[346468300,1734985909507,-3288.38,0.00015342,2]
[346468301,1734985909518,-1811.4,0.00015342,2]
[346468302,1734985909528,-500.0,0.00015342,2]
[346468303,1734985909539,-416.862212,0.00015342,2]
[346468304,1734985909548,-500.0,0.00015342,2]
[346468305,1734985909558,-1397.62,0.00015342,2]
[346468306,1734985909567,-638.509271,0.00015342,2]
[346468307,1734985909577,-1421.74,0.00015342,2]
[346468308,1734985909587,-1226.06,0.00015342,2]
[346468309,1734985909597,-500.0,0.00015342,2]
[346468310,1734985909607,-2054.5,0.00015342,2]
[346468311,1734985909617,-500.0,0.00015342,2]
[346468312,1734985909626,-1202.02,0.00015342,2]
[346468313,1734985909636,-997.04,0.00015342,2]
[346468314,1734985909646,-857.55,0.00015342,2]
[346468315,1734985909655,-500.0,0.00015342,2]
[346468316,1734985909664,-4568.68,0.00015342,2]
[346468317,1734985909673,-6837.63,0.00015342,2]
[346468318,1734985909682,-1006.94,0.00015342,2]
[346468319,1734985909690,-500.0,0.00015342,2]
[346468320,1734985909702,-3003.94,0.00015342,2]
[346468321,1734985909711,-3832.76,0.00015342,2]
[346468322,1734985909721,-500.0,0.00015342,2]
[346468323,1734985909730,-1063.28,0.00015342,2]
[346468324,1734985909740,-500.0,0.00015342,2]
[346468325,1734985909750,-191.308641,0.00015342,2]
[346468326,1734985909760,-2507.56,0.00015342,2]
[346468327,1734985909769,-8648.19,0.00015342,2]
[346468328,1734985909778,-5405.85,0.00015342,2]
[346468329,1734985909788,-960.03,0.00015342,2]
[346468330,1734985909797,-1187.23,0.00015342,2]
[346468331,1734985909806,-500.0,0.00015342,2]
[346468332,1734985909815,-2940.51,0.00015342,2]
[346468333,1734985909825,-1048.41,0.00015342,2]
[346468334,1734985909834,-840.39,0.00015342,2]
[346468335,1734985909843,-1068.6,0.00015342,2]
[346468336,1734985909852,-1993.74,0.00015342,2]
[346468337,1734985909861,-3561.12,0.00015342,2]
[346468338,1734985909870,-546.61,0.00015342,2]
[346468339,1734985909879,-500.0,0.00015342,2]
[346468340,1734985909888,-3274.29,0.00015342,2]
[346468341,1734985909897,-1338.38,0.00015342,2]
[346468342,1734985909907,-783.78,0.00015342,2]
[346468343,1734985909915,-500.0,0.00015342,2]
[346468344,1734985909924,-6361.67,0.00015342,2]
[346468345,1734985909937,-2499.95,0.00015342,2]
[346468346,1734985909949,-1272.9,0.00015342,2]
[346468347,1734985909957,-584.79,0.00015342,2]
[346468348,1734985909966,-1264.02,0.00015342,2]
[346468349,1734985909975,-151.0,0.00015342,2]
[346468350,1734985909984,-602.61,0.00015342,2]
[346468351,1734985909993,-2583.28,0.00015342,2]
[346468352,1734985910002,-3548.89,0.00015342,2]
[346468353,1734985910012,-20926.66,0.00015342,2]
[346468354,1734985910022,-151.0,0.00015342,2]
[346468355,1734985910031,-1616.84,0.00015342,2]
[346468356,1734985910041,-5036.21,0.00015342,2]
[346468357,1734985910051,-2477.09,0.00015342,2]
[346468358,1734985910060,-151.0,0.00015342,2]
[346468359,1734985910069,-1308.35,0.00015342,2]
[346468360,1734985910078,-345.39155,0.00015342,2]
[346468361,1734985910087,-3947.04,0.00015342,2]
[346468362,1734985910096,-500.0,0.00015342,2]
[346468363,1734985910105,-500.0,0.00015342,2]
[346468364,1734985910114,-1083.41,0.00015342,2]
[346468365,1734985910123,-2255.81,0.00015342,2]
[346468366,1734985910132,-1480.03,0.00015342,2]
[346468367,1734985910141,-151.0,0.00015342,2]
[346468368,1734985910150,-2607.12,0.00015342,2]
[346468369,1734985910159,-5040.82,0.00015342,2]
[346468370,1734985910168,-543.495431,0.00015342,2]
[346468371,1734985910179,-1247.57,0.00015342,2]
[346468372,1734985910187,-500.0,0.00015342,2]
[346468373,1734985910199,-630.85,0.00015342,2]
[346468374,1734985910208,-527.04136473,0.00015342,2]
[346468375,1734985910218,-500.0,0.00015342,2]
[346468376,1734985910227,-2068.91,0.00015342,2]